[Event "Lozovatsky Memorial-B 2020"]
[Site "Chelyabinsk"]
[Date "2020.01.18"]
[Round "4.10"]
[White "Somkin, Kirill"]
[Black "Mischuk, Dmitry"]
[Result "0-1"]
[ECO "B53"]
[WhiteElo "2121"]
[BlackElo "2358"]
[Annotator "ChessBase"]
[PlyCount "94"]
[EventDate "2020.01.15"]
[EventType "tourn"]
[EventCountry "RUS"]
[SourceTitle "playchess.com"]
[Source "ChessBase"]
[SourceQuality "1"]
[TimeControl "5400+30"]

1. e4 {[%emt 0:00:00]} c5 {[%emt 0:00:15]} 2. Nf3 {[%emt 0:00:00]} d6 {[%emt 0:00:25]} 3. d4 {[%emt 0:00:28]} cxd4 {[%emt 0:00:09]} 4. Qxd4 {[%emt 0:00:20]} Nf6 {[%emt 0:00:53]} 5. Nc3 {[%emt 0:00:23]} Nc6 {[%emt 0:01:01]} 6. Bb5 {[%emt 0:00:12]} Bd7 {[%emt 0:00:24]} 7. Bxc6 {[%emt 0:00:08]} Bxc6 {[%emt 0:00:28]} 8. Bg5 {[%emt 0:01:28]} e6 {[%emt 0:01:27]} 9. O-O-O {[%emt 0:00:41]} Be7 {[%emt 0:00:25]} 10. Qd3 {[%emt 0:01:50]} O-O {[%emt 0:06:22]} 11. Nd4 {[%emt 0:02:23]} Qa5 {[%emt 0:08:11]} 12. h4 {[%emt 0:03:35]} Rfc8 {[%emt 0:01:14]} 13. Kb1 {[%emt 0:03:39]} Rab8 {[%emt 0:09:51]} 14. f4 {[%emt 0:10:50]} b5 {[%emt 0:32:05]} 15. Nd5 {[%emt 0:52:57]} Bxd5 {[%emt 0:14:52]} 16. exd5 {[%emt 0:00:34]} Nxd5 {[%emt 0:00:21]} 17. f5 {[%emt 0:14:03]} b4 {[%emt 0:14:13]} 18. Nb3 {[%emt 0:01:15]} Qc7 {[%emt 0:01:51]} 19. fxe6 {[%emt 0:00:58]} fxe6 {[%emt 0:00:06]} 20. Qe4 {[%emt 0:00:25]} Nf6 {[%emt 0:02:55]} 21. Qxe6+ {[%emt 0:00:18]} Kh8 {[%emt 0:00:06]} 22. Nd4 {[%emt 0:01:29]} Re8 {[%emt 0:01:25]} 23. Qf7 {[%emt 0:01:52]} Bd8 {[%emt 0:00:59]} 24. Qxc7 {[%emt 0:01:19]} Bxc7 {[%emt 0:00:04]} 25. Rhe1 {[%emt 0:00:40]} Ne4 {[%emt 0:01:12]} 26. Bf4 {[%emt 0:00:21]} a5 {[%emt 0:00:44]} 27. Re3 {[%emt 0:00:35]} Rbc8 {[%emt 0:00:53]} 28. Nb5 {[%emt 0:00:44]} Bb6 {[%emt 0:00:18]} 29. Re2 {[%emt 0:00:25]} Bc5 {[%emt 0:00:15]} 30. Rde1 {[%emt 0:00:15]} Bf2 {[%emt 0:00:37]} 31. Rf1 {[%emt 0:00:48]} Bxh4 {[%emt 0:00:28]} 32. Kc1 {[%emt 0:00:31]} d5 {[%emt 0:00:13]} 33. Nc7 {[%emt 0:00:32]} Rf8 {[%emt 0:00:19]} 34. Nxd5 {[%emt 0:00:26]} Ng3 {[%emt 0:00:06]} 35. Rfe1 {[%emt 0:00:34]} Nxe2+ {[%emt 0:00:17]} 36. Rxe2 {[%emt 0:00:00]} Rce8 {[%emt 0:00:31]} 37. Rxe8 {[%emt 0:00:40]} Rxe8 {[%emt 0:00:04]} 38. Bc7 {[%emt 0:00:37]} Bd8 {[%emt 0:00:10]} 39. Bxd8 {[%emt 0:00:15]} Rxd8 {[%emt 0:00:04]} 40. Ne3 {[%emt 0:00:19]} Kg8 {[%emt 0:00:24]} 41. Nc4 {[%emt 0:00:20]} Rd5 {[%emt 0:00:18]} 42. Ne3 {[%emt 0:00:14]} Rd4 {[%emt 0:00:25]} 43. c3 {[%emt 0:00:31]} bxc3 {[%emt 0:00:06]} 44. bxc3 {[%emt 0:00:00]} Rd3 {[%emt 0:00:08]} 45. Nd1 {[%emt 0:00:02]} Rg3 {[%emt 0:00:04]} 46. Kb2 {[%emt 0:00:24]} Rxg2+ {[%emt 0:00:05]} 47. Kb3 {[%emt 0:00:01]} h5 {[%emt 0:00:07]} 0-1

[Event "Lozovatsky Memorial-B 2020"]
[Site "Chelyabinsk"]
[Date "2020.01.19"]
[Round "5.6"]
[White "Mischuk, Dmitry"]
[Black "Frolov, Artiom"]
[Result "1-0"]
[ECO "B06"]
[WhiteElo "2358"]
[BlackElo "2336"]
[Annotator "NA"]
[PlyCount "101"]
[EventDate "2020.01.15"]
[EventType "tourn"]
[EventCountry "RUS"]
[SourceTitle "playchess.com"]
[Source "ChessBase"]
[SourceQuality "1"]
[TimeControl "5400+30"]

1. e4 {[%emt 0:00:00]} g6 {[%emt 0:13:03]} 2. d4 {[%emt 0:00:00]} Bg7 {[%emt 0:00:21]} 3. Nf3 {[%emt 0:00:12]} d6 {[%emt 0:05:41]} 4. Bc4 {[%emt 0:01:44]} e6 {[%emt 0:02:25]} 5. Qe2 {[%emt 0:05:49]} Ne7 $14 {[%emt 0:06:12]} 6. O-O {[%emt 0:03:54]} b6 {[%emt 0:02:43]} 7. Rd1 {[%emt 0:04:42]} O-O {[%emt 0:01:09]} 8. c3 {[%emt 0:00:45]} Bb7 {[%emt 0:06:20]} 9. Nbd2 {[%emt 0:01:29]} a6 {[%emt 0:01:13]} 10. a4 {[%emt 0:00:53]} Nd7 {[%emt 0:03:30]} 11. Nf1 {[%emt 0:05:49]} Qe8 {[%emt 0:12:12]} 12. Ng3 {[%emt 0:01:35]} Kh8 {[%emt 0:03:26]} 13. Bb3 {[%emt 0:18:03]} Ng8 {[%emt 0:07:49]} 14. Bd2 {[%emt 0:03:13]} Qe7 {[%emt 0:03:43]} 15. Re1 {[%emt 0:06:09]} Rae8 {[%emt 0:15:28]} 16. Bg5 {[%emt 0:03:34]} f6 {[%emt 0:00:22]} 17. Bd2 {[%emt 0:00:17]} e5 {[%emt 0:01:00]} 18. Rad1 {[%emt 0:03:57]} Nb8 {[%emt 0:04:01]} 19. h3 {[%emt 0:03:17]} Bc8 {[%emt 0:00:24]} 20. Bc4 {[%emt 0:01:21]} Be6 {[%emt 0:01:29]} 21. b4 {[%emt 0:04:33]} Qf7 {[%emt 0:02:14]} 22. Bxe6 {[%emt 0:00:48]} Qxe6 {[%emt 0:00:02]} 23. d5 {[%emt 0:01:21]} Qc8 {[%emt 0:01:15]} 24. c4 {[%emt 0:00:35]} Nd7 {[%emt 0:02:25]} 25. Ra1 {[%emt 0:06:41]} Bh6 {[%emt 0:01:54]} 26. a5 {[%emt 0:00:17]} Bxd2 {[%emt 0:00:39]} 27. Nxd2 {[%emt 0:01:12]} f5 {[%emt 0:00:19]} 28. exf5 {[%emt 0:00:47]} gxf5 {[%emt 0:00:08]} 29. Qd3 {[%emt 0:04:08]} Ne7 {[%emt 0:00:44]} 30. Nf3 {[%emt 0:01:03]} Rf6 {[%emt 0:00:58]} 31. Qc3 {[%emt 0:01:30]} Rg8 {[%emt 0:00:21]} 32. Nh5 {[%emt 0:06:52]} Rfg6 {[%emt 0:00:18]} 33. Nf4 {[%emt 0:00:07]} R6g7 {[%emt 0:00:15]} 34. Nh4 {[%emt 0:02:51]} Nf6 {[%emt 0:00:55]} 35. Qb2 {[%emt 0:01:13]} Ne4 {[%emt 0:00:34]} 36. Ne6 {[%emt 0:00:21]} Ng5 {[%emt 0:01:22]} 37. Nxg5 {[%emt 0:00:59]} Rxg5 {[%emt 0:00:03]} 38. f4 {[%emt 0:00:04]} R5g7 {[%emt 0:01:16]} 39. fxe5 {[%emt 0:00:06]} Qf8 {[%emt 0:00:43]} 40. axb6 {[%emt 0:01:04]} dxe5 {[%emt 0:00:19]} 41. Qxe5 {[%emt 0:00:45]} cxb6 {[%emt 0:00:33]} 42. Rxa6 {[%emt 0:00:17]} Qc8 {[%emt 0:00:39]} 43. Ra7 {[%emt 0:00:28]} Qxc4 {[%emt 0:00:16]} 44. Rxe7 {[%emt 0:01:48]} Qxh4 {[%emt 0:00:02]} 45. d6 {[%emt 0:00:38]} f4 {[%emt 0:01:14]} 46. d7 {[%emt 0:00:46]} f3 {[%emt 0:00:15]} 47. Qxg7+ {[%emt 0:00:12]} Rxg7 {[%emt 0:00:27]} 48. d8=Q+ {[%emt 0:00:03]} Rg8 {[%emt 0:00:15]} 49. Rxh7+ {[%emt 0:01:26]} Qxh7 {[%emt 0:00:18]} 50. Qf6+ {[%emt 0:00:23]} Qg7 {[%emt 0:01:11]} 51. Qxf3 {[%emt 0:00:21]} 1-0

[Event "Lozovatsky Memorial-B 2020"]
[Site "Chelyabinsk"]
[Date "2020.01.19"]
[Round "5.7"]
[White "Scherbakov, Mikhail"]
[Black "Somkin, Kirill"]
[Result "0-1"]
[ECO "C70"]
[WhiteElo "2232"]
[BlackElo "2121"]
[Annotator "NA"]
[PlyCount "57"]
[EventDate "2020.01.15"]
[EventType "tourn"]
[EventCountry "RUS"]
[SourceTitle "playchess.com"]
[Source "ChessBase"]
[SourceQuality "1"]
[TimeControl "5400+30"]

1. e4 {[%emt 0:00:00]} e5 {[%emt 0:01:39]} 2. Nf3 {[%emt 0:00:04]} Nc6 {[%emt 0:00:11]} 3. Bb5 {[%emt 0:00:29]} a6 {[%emt 0:00:34]} 4. Ba4 {[%emt 0:00:33]} b5 {[%emt 0:00:27]} 5. Bb3 {[%emt 0:00:09]} Na5 {[%emt 0:00:33]} 6. Bxf7+ {[%emt 0:08:17]} Kxf7 {[%emt 0:00:07]} 7. Nxe5+ {[%emt 0:00:06]} Ke7 {[%emt 0:00:09]} 8. d4 {[%emt 0:01:49]} d6 {[%emt 0:00:26]} 9. Bg5+ {[%emt 0:06:47]} Nf6 {[%emt 0:00:08]} 10. Nc3 {[%emt 0:02:04]} Bb7 {[%emt 0:13:47]} 11. Qf3 {[%emt 0:06:55]} Qe8 {[%emt 0:11:58]} 12. O-O-O {[%emt 0:05:16]} Kd8 {[%emt 0:07:23]} 13. Bxf6+ {[%emt 0:01:52]} gxf6 {[%emt 0:01:18]} 14. Qxf6+ {[%emt 0:00:09]} Kc8 {[%emt 0:00:18]} 15. f4 {[%emt 0:05:05]} Be7 {[%emt 0:12:26]} 16. Qf5+ {[%emt 0:01:53]} Kb8 {[%emt 0:00:07]} 17. Nd7+ {[%emt 0:07:19]} Ka7 {[%emt 0:00:22]} 18. Nxb5+ {[%emt 0:02:49]} axb5 {[%emt 0:00:11]} 19. Qxb5 {[%emt 0:00:08]} Ba6 {[%emt 0:05:12]} 20. Qxa5 {[%emt 0:01:37]} Qxd7 {[%emt 0:00:44]} 21. h3 {[%emt 0:11:56]} Rhb8 {[%emt 0:07:26]} 22. Rhe1 {[%emt 0:09:27]} d5 {[%emt 0:12:53]} 23. Qxd5 {[%emt 0:00:19]} Qa4 {[%emt 0:01:24]} 24. Re3 {[%emt 0:03:31]} Bc4 {[%emt 0:01:01]} 25. Qe5 {[%emt 0:00:19]} Bd6 {[%emt 0:00:35]} 26. Qg7 {[%emt 0:03:24]} Bxf4 {[%emt 0:04:04]} 27. Rde1 {[%emt 0:02:57]} Rg8 {[%emt 0:01:32]} 28. Qf6 {[%emt 0:01:22]} Rxg2 {[%emt 0:01:09]} 29. Qg7 0-1

[Event "Lozovatsky Memorial-B 2020"]
[Site "Chelyabinsk"]
[Date "2020.01.19"]
[Round "5.8"]
[White "Ansat, Aldiyar"]
[Black "Nugumanov, Bakhtiyar"]
[Result "1-0"]
[ECO "C75"]
[WhiteElo "2263"]
[BlackElo "2389"]
[Annotator "NA"]
[PlyCount "117"]
[EventDate "2020.01.15"]
[EventType "tourn"]
[EventCountry "RUS"]
[SourceTitle "playchess.com"]
[Source "ChessBase"]
[SourceQuality "1"]
[TimeControl "5400+30"]

1. e4 e5 2. Nf3 Nc6 3. Bb5 a6 4. Ba4 d6 5. c3 Bd7 6. O-O g6 7. d4 Bg7 8. h3 Nf6 9. Re1 O-O 10. Nbd2 Re8 11. Bc2 b5 12. Nf1 $14 exd4 13. cxd4 Bc8 14. Ng3 Bb7 15. Bg5 Nb4 16. Bb1 c5 17. Qd2 {[%emt 1:04:57]} Nc6 {[%emt 0:46:32]} 18. Bc2 {[%emt 0:07:03]} Nxd4 {[%emt 0:03:54]} 19. Nxd4 {[%emt 0:01:17]} cxd4 {[%emt 0:00:09]} 20. Qf4 {[%emt 0:08:57]} Rc8 {[%emt 0:03:54]} 21. Bb3 {[%emt 0:02:23]} Re5 {[%emt 0:05:04]} 22. Rad1 {[%emt 0:06:08]} Rcc5 {[%emt 0:06:26]} 23. h4 {[%emt 0:02:03]} Qe7 {[%emt 0:04:19]} 24. Rxd4 {[%emt 0:04:17]} h5 {[%emt 0:11:21]} 25. Red1 {[%emt 0:01:10]} Rxg5 {[%emt 0:01:06]} 26. hxg5 {[%emt 0:00:30]} Ne8 {[%emt 0:00:29]} 27. R4d2 {[%emt 0:03:11]} Be5 {[%emt 0:05:50]} 28. Qh4 {[%emt 0:00:45]} Bxg3 {[%emt 0:01:19]} 29. Qxg3 {[%emt 0:00:06]} Rxg5 {[%emt 0:01:34]} 30. Qe3 {[%emt 0:00:06]} Re5 {[%emt 0:03:21]} 31. f3 {[%emt 0:01:19]} h4 {[%emt 0:02:11]} 32. Qh6 {[%emt 0:01:03]} Rg5 {[%emt 0:00:50]} 33. Kf2 {[%emt 0:00:40]} Qe5 {[%emt 0:01:09]} 34. Qxh4 {[%emt 0:00:29]} Qc5+ {[%emt 0:01:58]} 35. Kf1 {[%emt 0:00:19]} Kg7 {[%emt 0:04:28]} 36. Qf4 {[%emt 0:00:20]} f6 {[%emt 0:01:01]} 37. Rc2 {[%emt 0:00:24]} Qb6 {[%emt 0:00:24]} 38. Be6 {[%emt 0:00:38]} Rh5 {[%emt 0:00:34]} 39. Ke2 {[%emt 0:00:33]} Rg5 {[%emt 0:00:56]} 40. Bg4 {[%emt 0:00:27]} d5 {[%emt 0:00:24]} 41. Qe3 {[%emt 0:00:49]} Qd8 {[%emt 0:00:37]} 42. Kf1 {[%emt 0:00:20]} Nd6 {[%emt 0:00:23]} 43. Qf4 {[%emt 0:00:29]} Re5 {[%emt 0:00:25]} 44. exd5 {[%emt 0:00:23]} g5 {[%emt 0:00:36]} 45. Qb4 {[%emt 0:00:25]} a5 {[%emt 0:00:44]} 46. Qc5 {[%emt 0:00:31]} Kg6 {[%emt 0:00:24]} 47. Qc7 {[%emt 0:00:37]} Qf8 {[%emt 0:00:34]} 48. Be6 {[%emt 0:00:25]} b4 {[%emt 0:00:27]} 49. Kg1 {[%emt 0:00:30]} a4 {[%emt 0:00:34]} 50. Qb6 {[%emt 0:00:34]} g4 {[%emt 0:00:30]} 51. Bxg4 {[%emt 0:00:27]} Bxd5 {[%emt 0:00:32]} 52. f4 {[%emt 0:00:36]} b3 {[%emt 0:00:28]} 53. axb3 axb3 {[%emt 0:00:13]} 54. Rc3 {[%emt 0:00:56]} Re8 {[%emt 0:00:35]} 55. Rxd5 {[%emt 0:00:48]} Ne4 {[%emt 0:00:43]} 56. Bf5+ {[%emt 0:00:23]} Kg7 {[%emt 0:00:09]} 57. Rd7+ {[%emt 0:00:12]} Re7 {[%emt 0:00:15]} 58. Rxe7+ {[%emt 0:00:05]} Qxe7 {[%emt 0:00:01]} 59. Rc7 {[%emt 0:00:07]} 1-0

[Event "Lozovatsky Memorial-B 2020"]
[Site "Chelyabinsk"]
[Date "2020.01.19"]
[Round "5.9"]
[White "Sitnikov, Anton"]
[Black "Simantsev, Mikhail"]
[Result "1/2-1/2"]
[ECO "C49"]
[WhiteElo "2406"]
[BlackElo "2370"]
[Annotator "ChessBase"]
[PlyCount "20"]
[EventDate "2020.01.15"]
[EventType "tourn"]
[EventCountry "RUS"]
[SourceTitle "playchess.com"]
[Source "ChessBase"]
[SourceQuality "1"]
[TimeControl "5400+30"]

1. e4 {[%emt 0:02:35]} e5 {[%emt 0:00:00]} 2. Nf3 {[%emt 0:00:08]} Nc6 {[%emt 0:00:00]} 3. Nc3 {[%emt 0:00:07]} Nf6 {[%emt 0:00:00]} 4. Bb5 {[%emt 0:00:04]} Bb4 {[%emt 0:00:00]} 5. O-O {[%emt 0:00:06]} O-O {[%emt 0:00:00]} 6. d3 {[%emt 0:00:07]} d6 {[%emt 0:00:00]} 7. Ne2 {[%emt 0:00:05]} Ne7 {[%emt 0:00:07]} 8. c3 {[%emt 0:00:05]} Bc5 {[%emt 0:00:11]} 9. Ng3 {[%emt 0:00:07]} Ng6 {[%emt 0:00:05]} 10. h3 {[%emt 0:00:08]} h6 {[%emt 0:00:04]} 1/2-1/2

[Event "Lozovatsky Memorial-B 2020"]
[Site "Chelyabinsk"]
[Date "2020.01.19"]
[Round "5.10"]
[White "Tsvetkov, Pavel"]
[Black "Tologontegin, Semetey"]
[Result "1/2-1/2"]
[ECO "B30"]
[WhiteElo "2190"]
[BlackElo "2355"]
[Annotator "NA"]
[PlyCount "82"]
[EventDate "2020.01.15"]
[EventType "tourn"]
[EventCountry "RUS"]
[SourceTitle "playchess.com"]
[Source "ChessBase"]
[SourceQuality "1"]
[TimeControl "5400+30"]

1. e4 {[%emt 0:00:00]} c5 {[%emt 0:06:32]} 2. Nf3 {[%emt 0:00:00]} Nc6 {[%emt 0:00:03]} 3. Bb5 {[%emt 0:00:00]} d6 {[%emt 0:00:11]} 4. d4 {[%emt 0:00:00]} cxd4 {[%emt 0:00:04]} 5. Qxd4 {[%emt 0:00:00]} a6 {[%emt 0:00:05]} 6. Bxc6+ {[%emt 0:00:06]} bxc6 {[%emt 0:00:03]} 7. c4 {[%emt 0:02:18]} e5 {[%emt 0:00:07]} 8. Qd3 {[%emt 0:00:28]} Qc7 {[%emt 0:00:08]} 9. Nc3 {[%emt 0:03:10]} Be7 {[%emt 0:02:53]} 10. Bg5 {[%emt 0:16:13]} Bg4 {[%emt 0:14:09]} 11. Bxe7 $11 {[%emt 0:00:59]} Nxe7 {[%emt 0:00:05]} 12. Rd1 {[%emt 0:05:17]} Rd8 {[%emt 0:02:52]} 13. h3 {[%emt 0:33:24]} Bxf3 {[%emt 0:36:33]} 14. Qxf3 {[%emt 0:00:02]} O-O {[%emt 0:00:07]} 15. O-O {[%emt 0:14:15]} f5 {[%emt 0:00:23]} 16. Qe2 {[%emt 0:00:11]} fxe4 {[%emt 0:08:47]} 17. Nxe4 {[%emt 0:06:11]} Nf5 {[%emt 0:00:49]} 18. b4 {[%emt 0:00:27]} a5 {[%emt 0:09:39]} 19. a3 {[%emt 0:01:20]} axb4 {[%emt 0:00:26]} 20. axb4 {[%emt 0:00:01]} Rb8 {[%emt 0:00:48]} 21. Rb1 {[%emt 0:03:54]} Nd4 {[%emt 0:02:09]} 22. Qd3 {[%emt 0:00:02]} Qe7 {[%emt 0:06:56]} 23. Rfe1 {[%emt 0:05:30]} Rf4 {[%emt 0:00:47]} 24. b5 {[%emt 0:00:04]} cxb5 {[%emt 0:01:12]} 25. cxb5 {[%emt 0:00:06]} d5 {[%emt 0:00:50]} 26. Ng3 {[%emt 0:00:25]} Rb6 {[%emt 0:04:24]} 27. Qe3 {[%emt 0:04:01]} Re6 {[%emt 0:00:11]} 28. b6 {[%emt 0:00:11]} Qb7 {[%emt 0:00:04]} 29. Rec1 {[%emt 0:01:44]} Rf7 {[%emt 0:00:04]} 30. Rc5 {[%emt 0:01:45]} h6 {[%emt 0:00:42]} 31. Ra5 {[%emt 0:01:37]} Rxb6 {[%emt 0:02:49]} 32. Rxb6 {[%emt 0:00:06]} Qxb6 {[%emt 0:00:03]} 33. Rxd5 {[%emt 0:00:15]} Qb1+ {[%emt 0:00:30]} 34. Kh2 {[%emt 0:00:04]} Qc2 {[%emt 0:00:36]} 35. Qxe5 {[%emt 0:01:10]} Nf3+ {[%emt 0:00:44]} 36. gxf3 {[%emt 0:00:11]} Qxf2+ {[%emt 0:00:02]} 37. Kh1 {[%emt 0:00:08]} Qxf3+ {[%emt 0:00:02]} 38. Kg1 {[%emt 0:00:31]} Qf2+ {[%emt 0:00:03]} 39. Kh1 {[%emt 0:00:05]} Qf3+ {[%emt 0:00:01]} 40. Kg1 {[%emt 0:00:08]} Qf2+ {[%emt 0:02:31]} 41. Kh1 {[%emt 0:00:09]} Qf3+ {[%emt 0:00:28]} 1/2-1/2

[Event "Lozovatsky Memorial-B 2020"]
[Site "Chelyabinsk"]
[Date "2020.01.20"]
[Round "6.9"]
[White "Somkin, Kirill"]
[Black "Ansat, Aldiyar"]
[Result "1-0"]
[ECO "B53"]
[WhiteElo "2121"]
[BlackElo "2263"]
[Annotator "ChessBase"]
[PlyCount "93"]
[EventDate "2020.01.15"]
[EventType "tourn"]
[EventCountry "RUS"]
[SourceTitle "playchess.com"]
[Source "ChessBase"]
[SourceQuality "1"]
[TimeControl "5400+30"]

1. e4 {[%emt 0:00:13]} c5 {[%emt 0:00:31]} 2. Nf3 {[%emt 0:00:12]} d6 {[%emt 0:00:07]} 3. d4 {[%emt 0:00:12]} cxd4 {[%emt 0:00:10]} 4. Qxd4 {[%emt 0:00:08]} a6 {[%emt 0:00:10]} 5. Be3 {[%emt 0:00:16]} Nc6 {[%emt 0:00:47]} 6. Qd2 {[%emt 0:00:07]} Nf6 {[%emt 0:00:08]} 7. Nc3 {[%emt 0:00:05]} b5 {[%emt 0:02:15]} 8. a4 {[%emt 0:11:19]} bxa4 {[%emt 0:06:11]} 9. Rxa4 {[%emt 0:01:43]} Bb7 {[%emt 0:01:31]} 10. Be2 {[%emt 0:16:17]} e6 {[%emt 0:05:00]} 11. O-O {[%emt 0:01:38]} Be7 {[%emt 0:02:30]} 12. Rfa1 {[%emt 0:04:22]} a5 {[%emt 0:05:00]} 13. Nd4 {[%emt 0:07:26]} O-O {[%emt 0:03:21]} 14. f3 {[%emt 0:16:14]} Nd7 {[%emt 0:13:54]} 15. Nxc6 {[%emt 0:06:45]} Bxc6 {[%emt 0:00:16]} 16. Bb5 {[%emt 0:00:19]} Ne5 {[%emt 0:07:31]} 17. Bxc6 {[%emt 0:03:00]} Nxc6 {[%emt 0:00:02]} 18. Nb5 {[%emt 0:00:19]} Qd7 {[%emt 0:10:46]} 19. c3 {[%emt 0:09:52]} Ne5 {[%emt 0:10:12]} 20. Nd4 {[%emt 0:04:13]} Rab8 {[%emt 0:07:16]} 21. Qe2 {[%emt 0:03:06]} Qb7 {[%emt 0:01:28]} 22. b4 {[%emt 0:02:37]} axb4 {[%emt 0:14:52]} 23. Ra7 {[%emt 0:00:02]} Qc8 {[%emt 0:00:08]} 24. Rxe7 {[%emt 0:03:34]} bxc3 {[%emt 0:00:08]} 25. Rea7 {[%emt 0:01:28]} Rb2 {[%emt 0:06:58]} 26. Nc2 {[%emt 0:00:20]} Qb8 {[%emt 0:00:55]} 27. R7a3 {[%emt 0:03:45]} Rb1+ {[%emt 0:00:42]} 28. Kf2 {[%emt 0:00:19]} Rxa1 29. Rxa1 {[%emt 0:00:23]} Qb2 {[%emt 0:00:52]} 30. Bd4 {[%emt 0:01:05]} Nc6 {[%emt 0:00:16]} 31. Rd1 {[%emt 0:01:03]} Ra8 {[%emt 0:00:56]} 32. Rd3 {[%emt 0:02:07]} Nxd4 {[%emt 0:00:05]} 33. Rxd4 {[%emt 0:00:27]} Qb6 {[%emt 0:00:27]} 34. Kg3 {[%emt 0:00:36]} h5 {[%emt 0:01:02]} 35. Qd3 {[%emt 0:00:35]} Ra2 {[%emt 0:00:27]} 36. Rc4 {[%emt 0:00:37]} h4+ {[%emt 0:00:28]} 37. Kh3 {[%emt 0:00:24]} Qf2 {[%emt 0:00:34]} 38. Rxc3 {[%emt 0:00:47]} Ra5 {[%emt 0:00:29]} 39. Qe3 {[%emt 0:00:47]} Qf1 {[%emt 0:00:24]} 40. Qd3 {[%emt 0:00:34]} Qf2 {[%emt 0:00:11]} 41. Qd4 {[%emt 0:00:33]} Qf1 {[%emt 0:00:39]} 42. Ne3 {[%emt 0:00:33]} Qh1 {[%emt 0:00:19]} 43. Qxd6 {[%emt 0:00:26]} Qe1 {[%emt 0:01:01]} 44. Qd8+ {[%emt 0:00:13]} Kh7 {[%emt 0:00:03]} 45. Qxa5 {[%emt 0:00:12]} g6 {[%emt 0:00:48]} 46. Ng4 {[%emt 0:00:15]} Qd2 {[%emt 0:00:21]} 47. Qe5 {[%emt 0:00:16]} 1-0

[Event "Lozovatsky Memorial-B 2020"]
[Site "Chelyabinsk"]
[Date "2020.01.20"]
[Round "6.10"]
[White "Mischuk, Dmitry"]
[Black "Scherbakov, Mikhail"]
[Result "1-0"]
[ECO "A43"]
[WhiteElo "2358"]
[BlackElo "2232"]
[Annotator "RC"]
[PlyCount "73"]
[EventDate "2020.01.15"]
[EventType "tourn"]
[EventCountry "RUS"]
[SourceTitle "playchess.com"]
[Source "ChessBase"]
[SourceQuality "1"]
[TimeControl "5400+30"]

1. d4 {[%emt 0:00:09]} Nf6 {[%emt 0:00:00]} 2. Nf3 {[%emt 0:00:18]} c5 {[%emt 0:00:00]} 3. d5 {[%emt 0:02:29]} b5 {[%emt 0:00:12]} 4. c4 {[%emt 0:00:41]} d6 {[%emt 0:03:58]} 5. cxb5 {[%emt 0:01:27]} a6 {[%emt 0:01:28]} 6. e3 {[%emt 0:00:35]} g6 {[%emt 0:02:09]} 7. Nc3 {[%emt 0:00:30]} Bg7 {[%emt 0:00:21]} 8. a4 {[%emt 0:00:37]} O-O {[%emt 0:01:14]} 9. Ra3 {[%emt 0:01:13]} Nbd7 {[%emt 0:02:10]} 10. h3 {[%emt 0:04:03]} a5 {[%emt 0:02:24]} 11. Be2 {[%emt 0:01:12]} Nb6 {[%emt 0:01:03]} 12. O-O {[%emt 0:03:55]} Bb7 {[%emt 0:00:10]} 13. e4 {[%emt 0:00:27]} e6 {[%emt 0:01:35]} 14. dxe6 {[%emt 0:01:33]} fxe6 {[%emt 0:00:18]} 15. e5 {[%emt 0:00:47]} Nfd5 {[%emt 0:00:47]} 16. Ne4 {[%emt 0:06:05]} Rxf3 {[%emt 0:12:36]} 17. Bxf3 {[%emt 0:02:10]} Bxe5 {[%emt 0:00:06]} 18. Qe2 {[%emt 0:02:29]} Qf8 {[%emt 0:01:04]} 19. Nxc5 {[%emt 0:01:29]} Bc8 {[%emt 0:07:42]} 20. Bg4 {[%emt 0:02:59]} Qf7 {[%emt 0:06:56]} 21. Ne4 {[%emt 0:02:16]} Ra7 {[%emt 0:02:32]} 22. Bh6 {[%emt 0:00:58]} Rc7 {[%emt 0:05:32]} 23. Rf3 {[%emt 0:02:31]} Nf6 {[%emt 0:01:58]} 24. Nxf6+ {[%emt 0:03:04]} Bxf6 {[%emt 0:00:06]} 25. Re1 {[%emt 0:01:40]} e5 {[%emt 0:01:17]} 26. Bxc8 {[%emt 0:00:07]} Rxc8 {[%emt 0:00:05]} 27. Bg5 {[%emt 0:00:44]} Nd7 {[%emt 0:01:17]} 28. Bxf6 {[%emt 0:02:56]} Nxf6 {[%emt 0:00:02]} 29. Qd2 {[%emt 0:00:34]} e4 {[%emt 0:05:59]} 30. Rf4 {[%emt 0:03:31]} Qe6 {[%emt 0:03:35]} 31. Qd4 {[%emt 0:00:27]} Rf8 {[%emt 0:00:06]} 32. b4 {[%emt 0:03:27]} axb4 {[%emt 0:01:06]} 33. Qxb4 {[%emt 0:01:39]} g5 {[%emt 0:02:57]} 34. Rfxe4 {[%emt 0:00:08]} Qf5 {[%emt 0:00:17]} 35. Qb3+ {[%emt 0:01:38]} d5 {[%emt 0:01:11]} 36. Re5 {[%emt 0:00:13]} Qf4 {[%emt 0:04:12]} 37. Qe3 {[%emt 0:00:38]} 1-0

[Event "Lozovatsky Memorial-B 2020"]
[Site "Chelyabinsk"]
[Date "2020.01.21"]
[Round "7.8"]
[White "Sitnikov, Anton"]
[Black "Somkin, Kirill"]
[Result "1-0"]
[ECO "C26"]
[WhiteElo "2406"]
[BlackElo "2121"]
[Annotator "NA RC"]
[PlyCount "103"]
[EventDate "2020.01.15"]
[EventType "tourn"]
[EventCountry "RUS"]
[SourceTitle "playchess.com"]
[Source "ChessBase"]
[SourceQuality "1"]
[TimeControl "5400+30"]

1. e4 {[%emt 0:02:36]} e5 {[%emt 0:00:00]} 2. Nc3 {[%emt 0:00:27]} Nf6 {[%emt 0:00:06]} 3. g3 {[%emt 0:00:10]} d5 {[%emt 0:06:29]} 4. exd5 {[%emt 0:00:21]} Nxd5 {[%emt 0:00:17]} 5. Bg2 {[%emt 0:00:09]} Nxc3 {[%emt 0:00:37]} 6. bxc3 {[%emt 0:00:09]} Bc5 {[%emt 0:01:02]} 7. Nf3 {[%emt 0:01:20]} Nc6 {[%emt 0:00:15]} 8. O-O {[%emt 0:00:13]} O-O {[%emt 0:00:27]} 9. Re1 {[%emt 0:00:33]} Bg4 {[%emt 0:05:25]} 10. h3 {[%emt 0:06:41]} Bh5 {[%emt 0:00:28]} 11. Qe2 {[%emt 0:05:05]} Re8 {[%emt 0:14:20]} 12. Qc4 {[%emt 0:07:05]} Bb6 {[%emt 0:09:54]} 13. g4 {[%emt 0:22:16]} Bg6 {[%emt 0:01:49]} 14. d3 {[%emt 0:00:24]} Kh8 {[%emt 0:07:43]} 15. Rb1 $11 {[%emt 0:23:50]} Na5 {[%emt 0:13:41]} 16. Qa4 {[%emt 0:00:56]} f6 {[%emt 0:00:46]} 17. Nh4 {[%emt 0:10:06]} Bf7 {[%emt 0:00:44]} 18. c4 {[%emt 0:00:38]} Nc6 {[%emt 0:16:48]} 19. Ba3 {[%emt 0:10:03]} Nd4 {[%emt 0:04:46]} 20. Bxb7 {[%emt 0:02:41]} Rb8 {[%emt 0:04:42]} 21. Bg2 {[%emt 0:00:06]} Ne6 {[%emt 0:00:04]} 22. Nf5 Nf4 23. Bf1 {[%emt 0:03:41]} g6 24. Ne3 c5 {[%emt 0:08:26]} 25. Qc6 {[%emt 0:01:06]} Rc8 {[%emt 0:00:00]} 26. Qf3 {[%emt 0:00:00]} Qd6 27. Ng2 Ne6 28. Qxf6+ Kg8 29. Bb2 Bd8 30. Qxe5 Qxe5 31. Bxe5 {[%emt 0:03:32]} Ng5 {[%emt 0:03:40]} 32. Nh4 {[%emt 0:00:05]} Nxh3+ {[%emt 0:02:44]} 33. Bxh3 {[%emt 0:00:06]} Bxh4 {[%emt 0:00:01]} 34. Re4 {[%emt 0:01:41]} Rc6 {[%emt 0:00:40]} 35. g5 {[%emt 0:00:41]} Bxg5 {[%emt 0:00:42]} 36. Bd7 {[%emt 0:00:05]} Ra6 {[%emt 0:00:45]} 37. Bxe8 {[%emt 0:00:06]} Bxe8 {[%emt 0:00:01]} 38. Rb8 {[%emt 0:00:06]} Kf7 {[%emt 0:00:06]} 39. Rb7+ {[%emt 0:00:13]} Kg8 {[%emt 0:00:27]} 40. Rb8 {[%emt 0:00:59]} Kf7 {[%emt 0:00:03]} 41. Rxe8 {[%emt 0:01:29]} Kxe8 {[%emt 0:00:10]} 42. Bf6+ {[%emt 0:00:04]} Kd7 {[%emt 0:00:20]} 43. Bxg5 {[%emt 0:00:03]} Rxa2 {[%emt 0:00:05]} 44. Re7+ {[%emt 0:00:07]} Kd6 {[%emt 0:00:10]} 45. Rxh7 {[%emt 0:00:05]} a5 {[%emt 0:00:12]} 46. Be7+ {[%emt 0:00:17]} Ke6 {[%emt 0:00:16]} 47. Bxc5 {[%emt 0:00:06]} Rxc2 {[%emt 0:00:12]} 48. Ra7 {[%emt 0:00:03]} Ra2 {[%emt 0:00:06]} 49. d4 {[%emt 0:00:07]} Kf5 {[%emt 0:00:12]} 50. d5 Kg4 {[%emt 0:00:05]} 51. d6 {[%emt 0:00:21]} Kh3 {[%emt 0:00:12]} 52. Rh7+ {[%emt 0:00:00]} 1-0